fUST/lending_fUST_20240713
["ID","MTS","AMOUNT","RATE_DAILY","PERIOD"]
[331926493,1720855849668,-549.21095173,0.00025205,2]
[331926494,1720855849678,-500.0,0.00025205,2]
[331926495,1720855849687,-509.24349727,0.00025205,2]
[331926496,1720855849696,-502.8049137,0.00025205,2]
[331926497,1720855849706,-381.77376942,0.00025205,2]
[331926498,1720855849715,-374.63933856,0.00025205,2]
[331926499,1720855849725,-500.0,0.00025205,2]
[331926500,1720855849735,-237.9774062,0.00025205,2]
[331926501,1720855849744,-500.0,0.00025205,2]
[331926502,1720855849753,-151.0,0.00025205,7]
[331926503,1720855849763,-151.0,0.00025205,7]
[331926504,1720855849772,-500.0,0.00025205,2]
[331926505,1720855849781,-504.36342514,0.00025205,2]
[331926506,1720855849790,-500.0,0.00025205,2]
[331926507,1720855849800,-500.0,0.00025205,2]
[331926508,1720855849809,-503.15347149,0.00025205,2]
[331926509,1720855849818,-500.0,0.00025205,2]
[331926510,1720855849828,-502.14379041,0.00025205,2]
[331926511,1720855849837,-427.02967847,0.00025205,2]
[331926512,1720855849851,-500.0,0.00025205,2]
[331926513,1720855849860,-500.0,0.00025205,2]
[331926514,1720855849870,-504.25305784,0.00025205,2]
[331926515,1720855849879,-507.31967346,0.00025205,2]
[331926516,1720855849891,-500.0,0.00025205,2]
[331926517,1720855849900,-500.0,0.00025205,2]
[331926518,1720855849910,-513.97995288,0.00025205,2]
[331926519,1720855849919,-505.37477536,0.00025205,2]
[331926520,1720855849928,-551.71117352,0.00025205,2]
[331926521,1720855849937,-500.0,0.00025205,2]
[331926522,1720855849945,-500.0,0.00025205,2]
[331926523,1720855849955,-564.68,0.00025205,2]
[331926524,1720855849964,-500.0,0.00025205,2]
[331926525,1720855849973,-529.37409628,0.00025205,2]
[331926526,1720855849983,-500.0,0.00025205,2]
[331926527,1720855849992,-500.0,0.00025205,2]
[331926528,1720855850001,-501.89930522,0.00025205,2]
[331926529,1720855850012,-151.0,0.00025205,2]
[331926530,1720855850021,-500.0,0.00025205,2]
[331926531,1720855850030,-900.64,0.00025205,2]
[331926532,1720855850039,-500.0,0.00025205,2]
[331926533,1720855850049,-151.0,0.00025205,2]
[331926534,1720855850058,-500.0,0.00025205,2]
[331926535,1720855850068,-169.481129,0.00025205,7]
[331926536,1720855850078,-151.0,0.00025205,7]
[331926537,1720855850088,-503.10143707,0.00025205,2]
[331926538,1720855850102,-303.69390977,0.00025205,2]
[331926539,1720855850111,-500.0,0.00025205,2]
[331926540,1720855850120,-500.0,0.00025205,2]
[331926541,1720855850130,-151.0,0.00025205,7]
[331926542,1720855850139,-500.0,0.00025205,2]
[331926543,1720855850148,-231.58,0.00025205,2]
[331926544,1720855850158,-422.70782102,0.00025205,2]
[331926545,1720855850167,-500.0,0.00025205,2]
[331926546,1720855850177,-500.0,0.00025205,2]
[331926547,1720855850187,-500.0,0.00025205,2]
[331926548,1720855850197,-500.0,0.00025205,2]
[331926549,1720855850206,-506.07253695,0.00025205,2]
[331926550,1720855850216,-219.95395039,0.00025205,2]
[331926551,1720855850225,-502.49059916,0.00025205,2]
[331926552,1720855850235,-505.29809646,0.00025205,2]
[331926553,1720855850244,-506.00373082,0.00025205,2]
[331926554,1720855850254,-151.0,0.00025205,7]
[331926555,1720855850263,-500.0,0.00025205,2]
[331926556,1720855850273,-151.0,0.00025205,7]
[331926557,1720855850282,-151.0,0.00025205,7]
[331926558,1720855850292,-500.0,0.00025205,2]
[331926559,1720855850302,-151.0,0.00025205,7]
[331926560,1720855850311,-223.969491,0.00025205,7]
[331926561,1720855850320,-546.99775167,0.00025205,2]
[331926562,1720855850330,-505.71368057,0.00025205,2]
[331926563,1720855850339,-503.14297446,0.00025205,2]
[331926564,1720855850351,-614.13738169,0.00025205,2]
[331926565,1720855850360,-500.0,0.00025205,2]
[331926566,1720855850370,-500.0,0.00025205,2]
[331926567,1720855850378,-151.0,0.00025205,7]
[331926568,1720855850387,-268.71859715,0.00025205,2]
[331926569,1720855850397,-151.0,0.00025205,7]
[331926570,1720855850406,-218.852532,0.00025205,7]
[331926571,1720855850416,-507.17226905,0.00025205,2]
[331926572,1720855850425,-500.0,0.00025205,2]
[331926573,1720855850434,-502.27749847,0.00025205,2]
[331926574,1720855850447,-502.99870871,0.00025205,2]
[331926575,1720855850456,-500.0,0.00025205,2]
[331926576,1720855850467,-151.0,0.00025205,7]
[331926577,1720855850477,-151.0,0.00025205,7]
[331926578,1720855850486,-500.0,0.00025205,2]
[331926579,1720855850495,-458.44998253,0.00025205,2]
[331926580,1720855850504,-500.0,0.00025205,2]
[331926581,1720855850514,-500.0,0.00025205,2]
[331926582,1720855850523,-500.0,0.00025205,2]
[331926583,1720855850532,-151.0,0.00025205,7]
[331926584,1720855850541,-500.0,0.00025205,2]
[331926585,1720855850550,-151.0,0.00025205,7]
[331926586,1720855850559,-181.585974,0.00025205,7]
[331926587,1720855850569,-151.0,0.00025205,7]
[331926588,1720855850578,-500.0,0.00025205,2]
[331926589,1720855850587,-151.0,0.00025205,7]
[331926590,1720855850599,-500.0,0.00025205,2]
[331926591,1720855850608,-504.61196702,0.00025205,2]
[331926592,1720855850617,-500.0,0.00025205,2]
[331926593,1720855850627,-545.03,0.00025205,2]
[331926594,1720855850635,-500.0,0.00025205,2]
[331926595,1720855850645,-500.0,0.00025205,2]
[331926596,1720855850654,-227.0807905,0.00025205,2]
[331926597,1720855850663,-500.0,0.00025205,2]
[331926598,1720855850671,-500.0,0.00025205,2]
[331926599,1720855850681,-378.56848894,0.00025205,2]
[331926600,1720855850690,-500.0,0.00025205,2]
[331926601,1720855850699,-500.0,0.00025205,2]
[331926602,1720855850709,-495.39165002,0.00025205,2]
[331926603,1720855850718,-303.2196073,0.00025205,2]
[331926604,1720855850727,-500.0,0.00025205,2]
[331926605,1720855850736,-510.19384143,0.00025205,2]
[331926606,1720855850745,-509.36186168,0.00025205,2]
[331926607,1720855850754,-503.48140678,0.00025205,2]
[331926608,1720855850763,-319.73078195,0.00025205,2]
[331926609,1720855850773,-549.9,0.00025205,2]
[331926610,1720855850783,-500.0,0.00025205,2]
[331926611,1720855850792,-500.0,0.00025205,2]
[331926612,1720855850801,-504.31130692,0.00025205,2]
[331926613,1720855850810,-924.56,0.00025205,2]
[331926614,1720855850819,-500.0,0.00025205,2]
[331926615,1720855850828,-500.0,0.00025205,2]
[331926616,1720855850838,-500.0,0.00025205,2]
[331926617,1720855850849,-500.0,0.00025205,2]
[331926618,1720855850858,-151.0,0.00025205,7]
[331926619,1720855850867,-151.0,0.00025205,7]
[331926620,1720855850877,-678.01,0.00025205,2]
[331926621,1720855850887,-500.0,0.00025205,2]
[331926622,1720855850977,-762.86,0.00025205,2]
[331926623,1720855850988,-500.0,0.00025205,2]
[331926624,1720855850998,-504.92355843,0.00025205,2]
[331926625,1720855851007,-500.0,0.00025205,2]
[331926626,1720855851017,-495.912352,0.00025205,7]
[331926627,1720855851028,-495.912352,0.00025205,7]
[331926628,1720855851037,-495.912352,0.00025205,7]
[331926629,1720855851047,-495.912352,0.00025205,7]
[331926630,1720855851057,-600.35162437,0.00025205,2]
[331926631,1720855851066,-500.0,0.00025205,2]
[331926632,1720855851076,-151.0,0.00025205,7]
[331926633,1720855851086,-151.0,0.00025205,7]
[331926634,1720855851097,-507.80262268,0.00025205,2]
[331926635,1720855851106,-151.0,0.00025205,7]
[331926636,1720855851115,-151.0,0.00025205,7]
[331926637,1720855851124,-9300.48,0.00025205,2]
[331926638,1720855851133,-500.0,0.00025205,2]
[331926639,1720855851143,-3136.93,0.00025205,2]
[331926640,1720855851152,-151.0,0.00025205,4]
[331926641,1720855851161,-151.0,0.00025205,4]
[331926642,1720855851171,-500.0,0.00025205,2]
[331926643,1720855851181,-505.83772584,0.00025205,2]
[331926644,1720855851190,-500.0,0.00025205,2]
[331926645,1720855851200,-500.0,0.00025205,2]
[331926646,1720855851210,-500.0,0.00025205,2]
[331926647,1720855851219,-500.0,0.00025205,2]
[331926648,1720855851229,-500.0,0.00025205,2]
[331926649,1720855851238,-500.0,0.00025205,2]
[331926650,1720855851248,-500.0,0.00025205,2]
[331926651,1720855851257,-395.59637856,0.00025205,2]
[331926652,1720855851267,-3189.57,0.00025205,2]
[331926653,1720855851277,-500.0,0.00025205,2]
[331926654,1720855851286,-500.0,0.00025205,2]
[331926655,1720855851296,-151.0,0.00025205,7]
[331926656,1720855851306,-500.0,0.00025205,2]
[331926657,1720855851315,-500.0,0.00025205,2]
[331926658,1720855851325,-506.96099191,0.00025205,2]
[331926659,1720855851335,-500.0,0.00025205,2]
[331926660,1720855851346,-500.0,0.00025205,2]
[331926661,1720855851356,-604.82305018,0.00025205,2]
[331926662,1720855851365,-500.0,0.00025205,2]
[331926663,1720855851375,-500.0,0.00025205,2]
[331926664,1720855851384,-500.0,0.00025205,2]
[331926665,1720855851394,-500.0,0.00025205,2]
[331926666,1720855851403,-500.0,0.00025205,2]
[331926667,1720855851413,-500.0,0.00025205,2]
[331926668,1720855851422,-500.0,0.00025205,2]
[331926669,1720855851431,-242.71387061,0.00025205,2]
[331926670,1720855851444,-151.0,0.00025389,7]
[331926671,1720855851453,-151.0,0.00025389,7]
[331926672,1720855851462,-151.0,0.00025468,7]
[331926673,1720855851472,-151.0,0.00025468,7]
[331926674,1720855851482,-1545.54,0.00025468,2]
[331926675,1720855851491,-11315.6753036,0.00025469,3]
[331926676,1720855851501,-151.0,0.00025469,7]
[331926677,1720855851510,-509.13,0.00025478,2]
[331926678,1720855851524,-1469.61,0.00025478,2]
[331926679,1720855851534,-1469.61,0.00025478,2]
[331926680,1720855851543,-500.0,0.00025478,2]
[331926681,1720855851552,-1545.54,0.00025478,2]
[331926682,1720855851562,-500.0,0.00025479,2]
[331926683,1720855851572,-500.0,0.00025479,2]
[331926684,1720855851581,-435.0511535,0.00025479,2]
[331926685,1720855851590,-500.0,0.00025479,2]
[331926686,1720855851602,-500.0,0.00025479,2]
[331926687,1720855851612,-151.0,0.00025479,2]
[331926688,1720855851621,-900.64,0.00025479,2]
[331926689,1720855851631,-500.0,0.00025479,2]
[331926690,1720855851640,-151.0,0.00025479,2]
[331926691,1720855851650,-611.52758316,0.00025479,2]
[331926692,1720855851660,-153.735345,0.00025479,7]
[331926693,1720855851669,-541.85,0.00025479,2]
[331926694,1720855851678,-500.0,0.00025479,2]
[331926695,1720855851687,-500.0,0.00025479,2]
[331926696,1720855851697,-500.0,0.00025479,2]
[331926697,1720855851706,-500.0,0.00025479,2]
[331926698,1720855851715,-151.0,0.00025479,7]
[331926699,1720855851725,-500.0,0.00025479,2]
[331926700,1720855851734,-151.0,0.00025479,7]
[331926701,1720855851743,-151.0,0.00025479,7]
[331926702,1720855851752,-500.0,0.00025479,2]
[331926703,1720855851761,-151.0,0.00025479,7]
[331926704,1720855851771,-500.0,0.00025479,2]
[331926705,1720855851780,-500.0,0.00025479,2]
[331926706,1720855851789,-151.0,0.00025479,7]
[331926707,1720855851800,-151.0,0.00025479,7]
[331926708,1720855851811,-500.0,0.00025479,2]
[331926709,1720855851822,-151.0,0.00025479,7]
[331926710,1720855851832,-259.949377,0.00025479,7]
[331926711,1720855851841,-548.9,0.00025479,2]
[331926712,1720855851853,-500.0,0.00025479,2]
[331926713,1720855851863,-151.0,0.00025479,7]
[331926714,1720855851872,-500.0,0.00025479,2]
[331926715,1720855851882,-161.49765,0.00025479,7]
[331926716,1720855851891,-151.0,0.00025479,7]
[331926717,1720855851900,-607.07,0.00025479,2]
[331926718,1720855851910,-151.0,0.00025479,7]
[331926719,1720855851919,-500.0,0.00025479,2]
[331926720,1720855851929,-500.0,0.00025479,2]
[331926721,1720855851938,-500.0,0.00025479,2]
[331926722,1720855851948,-500.0,0.00025479,2]
[331926723,1720855851957,-500.0,0.00025479,2]
[331926724,1720855851966,-500.0,0.00025479,2]
[331926725,1720855851976,-500.0,0.00025479,2]
[331926726,1720855851986,-549.9,0.00025479,2]
[331926727,1720855851995,-500.0,0.00025479,2]
[331926728,1720855852004,-924.56,0.00025479,2]
[331926729,1720855852014,-500.0,0.00025479,2]
[331926730,1720855852023,-500.0,0.00025479,2]
[331926731,1720855852032,-500.0,0.00025479,2]
[331926732,1720855852042,-151.0,0.00025479,7]
[331926733,1720855852052,-678.01,0.00025479,2]
[331926734,1720855852062,-1000.0,0.00025479,5]
[331926735,1720855852071,-1000.0,0.00025479,5]
[331926736,1720855852080,-1000.0,0.00025479,5]
[331926737,1720855852089,-1000.0,0.00025479,5]
[331926738,1720855852100,-1000.0,0.00025479,5]
[331926739,1720855852110,-1000.0,0.00025479,5]
[331926740,1720855852119,-1000.0,0.00025479,5]
[331926741,1720855852128,-1000.0,0.00025479,5]
[331926742,1720855852138,-762.86,0.00025479,2]
[331926743,1720855852148,-1000.0,0.00025479,5]
[331926744,1720855852157,-1000.0,0.00025479,5]
[331926745,1720855852166,-1000.0,0.00025479,5]
[331926746,1720855852175,-1000.0,0.00025479,5]
[331926747,1720855852184,-500.0,0.00025479,2]
[331926748,1720855852194,-1000.0,0.00025479,5]
[331926749,1720855852203,-1000.0,0.00025479,5]
[331926750,1720855852212,-1000.0,0.00025479,5]
[331926751,1720855852221,-1000.0,0.00025479,5]
[331926752,1720855852231,-1000.0,0.00025479,5]
[331926753,1720855852241,-1000.0,0.00025479,5]
[331926754,1720855852250,-1000.0,0.00025479,5]
[331926755,1720855852259,-1000.0,0.00025479,5]
[331926756,1720855852269,-1000.0,0.00025479,5]
[331926757,1720855852278,-1000.0,0.00025479,5]
[331926758,1720855852287,-1000.0,0.00025479,5]
[331926759,1720855852297,-1000.0,0.00025479,5]
[331926760,1720855852307,-1000.0,0.00025479,5]
[331926761,1720855852316,-1000.0,0.00025479,5]
[331926762,1720855852326,-1000.0,0.00025479,5]
[331926763,1720855852335,-1000.0,0.00025479,5]
[331926764,1720855852344,-1000.0,0.00025479,5]
[331926765,1720855852355,-495.912352,0.00025479,7]
[331926766,1720855852364,-1000.0,0.00025479,5]
[331926767,1720855852374,-1000.0,0.00025479,5]
[331926768,1720855852383,-1000.0,0.00025479,5]
[331926769,1720855852392,-1000.0,0.00025479,5]
[331926770,1720855852401,-1000.0,0.00025479,5]
[331926771,1720855852411,-1000.0,0.00025479,5]
[331926772,1720855852420,-1000.0,0.00025479,5]
[331926773,1720855852429,-1000.0,0.00025479,5]
[331926774,1720855852440,-1000.0,0.00025479,5]
[331926775,1720855852450,-1000.0,0.00025479,5]
[331926776,1720855852459,-495.912352,0.00025479,7]
[331926777,1720855852469,-1000.0,0.00025479,5]
[331926778,1720855852479,-1000.0,0.00025479,5]
[331926779,1720855852487,-1000.0,0.00025479,5]
[331926780,1720855852496,-1000.0,0.00025479,5]
[331926781,1720855852505,-1000.0,0.00025479,5]
[331926782,1720855852515,-1000.0,0.00025479,5]
[331926783,1720855852524,-1000.0,0.00025479,5]
[331926784,1720855852534,-1000.0,0.00025479,5]
[331926785,1720855852543,-1000.0,0.00025479,5]
[331926786,1720855852552,-1000.0,0.00025479,5]
[331926787,1720855852561,-1000.0,0.00025479,5]
[331926788,1720855852570,-500.0,0.00025479,2]
[331926789,1720855852580,-1000.0,0.00025479,5]
[331926790,1720855852591,-1000.0,0.00025479,5]
[331926791,1720855852602,-151.0,0.00025479,7]
[331926792,1720855852612,-1000.0,0.00025479,5]
[331926793,1720855852622,-1000.0,0.00025479,5]
[331926794,1720855852632,-1000.0,0.00025479,5]
[331926795,1720855852641,-1000.0,0.00025479,5]
[331926796,1720855852651,-1000.0,0.00025479,5]
[331926797,1720855852660,-1000.0,0.00025479,5]
[331926798,1720855852669,-1000.0,0.00025479,5]
[331926799,1720855852678,-1000.0,0.00025479,5]
[331926800,1720855852687,-1000.0,0.00025479,5]
[331926801,1720855852696,-1000.0,0.00025479,5]
[331926802,1720855852705,-1000.0,0.00025479,5]
[331926803,1720855852716,-1000.0,0.00025479,5]
[331926804,1720855852725,-151.0,0.00025479,7]
[331926805,1720855852734,-9300.48,0.00025479,2]
[331926806,1720855852744,-1000.0,0.00025479,5]
[331926807,1720855852753,-1000.0,0.00025479,5]
[331926808,1720855852762,-1000.0,0.00025479,5]
[331926809,1720855852772,-1000.0,0.00025479,5]
[331926810,1720855852781,-1000.0,0.00025479,5]
[331926811,1720855852790,-1000.0,0.00025479,5]
[331926812,1720855852800,-1000.0,0.00025479,5]
[331926813,1720855852810,-1000.0,0.00025479,5]
[331926814,1720855852820,-1000.0,0.00025479,5]
[331926815,1720855852830,-1000.0,0.00025479,5]
[331926816,1720855852839,-1000.0,0.00025479,5]
[331926817,1720855852850,-500.0,0.00025479,2]
[331926818,1720855852859,-661.405572,0.00025479,5]
[331926819,1720855852869,-3136.93,0.00025479,2]
[331926820,1720855852879,-151.0,0.00025479,4]
[331926821,1720855852888,-500.0,0.00025479,2]
[331926822,1720855852898,-642.86,0.00025479,2]
[331926823,1720855852907,-500.0,0.00025479,2]
[331926824,1720855852917,-500.0,0.00025479,2]
[331926825,1720855852926,-430.79,0.00025479,2]
[331926826,1720855852936,-500.0,0.00025479,2]
[331926827,1720855852945,-500.0,0.00025479,2]
[331926828,1720855852954,-3189.57,0.00025479,2]
[331926829,1720855852963,-500.0,0.00025479,2]
[331926830,1720855852971,-500.0,0.00025479,2]
[331926831,1720855852979,-151.0,0.00025479,7]
[331926832,1720855852987,-500.0,0.00025479,2]
[331926833,1720855853083,-500.0,0.00025479,2]
[331926834,1720855853093,-500.0,0.00025479,2]
[331926835,1720855853106,-437.52,0.00025479,2]
[331926836,1720855853116,-500.0,0.00025479,2]
[331926837,1720855853129,-500.0,0.00025479,2]
[331926838,1720855853138,-500.0,0.00025479,2]
[331926839,1720855853148,-500.0,0.00025479,2]
[331926840,1720855853157,-500.0,0.00025479,2]
[331926841,1720855853167,-607.73503305,0.00025479,2]
[331926842,1720855853176,-516.59347488,0.00025555,2]
[331926843,1720855853185,-1000.0,0.00025569,2]
[331926844,1720855853194,-2387.1703087,0.00025569,2]
[331926845,1720855853204,-764.43027422,0.00025569,2]
[331926846,1720855853214,-225.9011813,0.00025569,2]
[331926847,1720855853224,-155.39951826,0.0002557,2]
[331926848,1720855853234,-190.37638131,0.0002557,10]
[331926849,1720855853244,-1407.0,0.00025575,2]
[331926850,1720855853254,-150.0,0.00025575,2]
[331926851,1720855853263,-11315.6753036,0.00025742,3]
[331926852,1720855853273,-509.13,0.00025752,2]
[331926853,1720855853283,-1469.61,0.00025752,2]
[331926854,1720855853292,-500.0,0.00025752,2]
[331926855,1720855853302,-1545.54,0.00025752,2]
[331926856,1720855853312,-500.0,0.00025753,2]
[331926857,1720855853322,-274.484059,0.00025753,7]
[331926858,1720855853333,-500.0,0.00025753,2]
[331926859,1720855853342,-500.0,0.00025753,2]
[331926860,1720855853353,-500.0,0.00025753,2]
[331926861,1720855853363,-151.0,0.00025753,7]
[331926862,1720855853373,-900.64,0.00025753,2]
[331926863,1720855853383,-500.0,0.00025753,2]
[331926864,1720855853394,-363.36,0.00025753,2]
[331926865,1720855853404,-151.0,0.00025753,7]
[331926866,1720855853413,-500.0,0.00025753,2]
[331926867,1720855853424,-500.0,0.00025753,2]
[331926868,1720855853433,-500.0,0.00025753,2]
[331926869,1720855853446,-500.0,0.00025753,2]
[331926870,1720855853455,-500.0,0.00025753,2]
[331926871,1720855853465,-500.0,0.00025753,2]
[331926872,1720855853473,-151.0,0.00025753,7]
[331926873,1720855853484,-151.0,0.00025753,7]
[331926874,1720855853494,-500.0,0.00025753,2]
[331926875,1720855853503,-151.0,0.00025753,7]
[331926876,1720855853512,-151.0,0.00025753,7]
[331926877,1720855853524,-151.0,0.00025753,7]
[331926878,1720855853534,-229.87,0.00025753,2]
[331926879,1720855853544,-500.0,0.00025753,2]
[331926880,1720855853554,-542.64,0.00025753,2]
[331926881,1720855853563,-500.0,0.00025753,2]
[331926882,1720855853573,-500.0,0.00025753,2]
[331926883,1720855853582,-549.9,0.00025753,2]
[331926884,1720855853592,-500.0,0.00025753,2]
[331926885,1720855853603,-924.56,0.00025753,2]
[331926886,1720855853612,-500.0,0.00025753,2]
[331926887,1720855853622,-500.0,0.00025753,2]
[331926888,1720855853632,-678.01,0.00025753,2]
[331926889,1720855853641,-762.86,0.00025753,2]
[331926890,1720855853651,-500.0,0.00025753,2]
[331926891,1720855853661,-495.912352,0.00025753,7]
[331926892,1720855853670,-495.912352,0.00025753,7]
[331926893,1720855853680,-631.62,0.00025753,2]
[331926894,1720855853690,-151.0,0.00025753,7]
[331926895,1720855853700,-151.0,0.00025753,7]
[331926896,1720855853709,-9300.48,0.00025753,2]
[331926897,1720855853718,-520.23,0.00025753,2]
[331926898,1720855853728,-3136.93,0.00025753,2]
[331926899,1720855853737,-151.0,0.00025753,4]
[331926900,1720855853746,-500.0,0.00025753,2]
[331926901,1720855853756,-500.0,0.00025753,2]
[331926902,1720855853766,-500.0,0.00025753,2]
[331926903,1720855853775,-500.0,0.00025753,2]
[331926904,1720855853785,-3189.57,0.00025753,2]
[331926905,1720855853794,-500.0,0.00025753,2]
[331926906,1720855853804,-500.0,0.00025753,2]
[331926907,1720855853814,-500.0,0.00025753,2]
[331926908,1720855853823,-531.36,0.00025753,2]
[331926909,1720855853833,-500.0,0.00025753,2]
[331926910,1720855853843,-500.0,0.00025753,2]
[331926911,1720855853854,-500.0,0.00025753,2]
[331926912,1720855853863,-500.0,0.00025753,2]
[331926913,1720855853873,-500.0,0.00025753,2]
[331926914,1720855853883,-1545.54,0.00025867,2]
[331926915,1720855853893,-151.0,0.00025868,7]
[331926916,1720855853902,-151.0,0.00025868,7]
[331926917,1720855853912,-151.0,0.00025868,7]
[331926918,1720855853922,-452.15940518,0.00025956,2]
[331926919,1720855853931,-452.15940518,0.00025957,2]
[331926920,1720855853940,-11315.6753036,0.00025996,3]
[331926921,1720855853950,-151.0,0.00026006,7]
[331926922,1720855853959,-151.0,0.00026006,7]
[331926923,1720855853969,-1469.61,0.00026006,2]
[331926924,1720855853979,-151.0,0.00026007,2]
[331926925,1720855853989,-151.0,0.00026007,2]
[331926926,1720855853999,-452.15940518,0.00026011,2]
[331926927,1720855854008,-1545.54,0.00026026,2]
[331926928,1720855854018,-500.0,0.00026027,2]
[331926929,1720855854027,-608.63,0.00026027,2]
[331926930,1720855854037,-500.0,0.00026027,2]
[331926931,1720855854046,-500.0,0.00026027,2]
[331926932,1720855854056,-900.64,0.00026027,2]
[331926933,1720855854066,-411.52042183,0.00026027,2]
[331926934,1720855854075,-151.650084,0.00026027,7]
[331926935,1720855854085,-500.0,0.00026027,2]
[331926936,1720855854094,-500.0,0.00026027,2]
[331926937,1720855854108,-500.0,0.00026027,2]
[331926938,1720855854117,-500.0,0.00026027,2]
[331926939,1720855854127,-500.0,0.00026027,2]
[331926940,1720855854136,-317.42527388,0.00026027,2]
[331926941,1720855854145,-151.0,0.00026027,7]
[331926942,1720855854155,-151.0,0.00026027,7]
[331926943,1720855854164,-442.45,0.00026027,2]
[331926944,1720855854173,-151.0,0.00026027,7]
[331926945,1720855854183,-151.0,0.00026027,7]
[331926946,1720855854192,-151.0,0.00026027,7]
[331926947,1720855854202,-500.0,0.00026027,2]
[331926948,1720855854211,-500.0,0.00026027,2]
[331926949,1720855854221,-335.72,0.00026027,2]
[331926950,1720855854231,-549.9,0.00026027,2]
[331926951,1720855854241,-500.0,0.00026027,2]
[331926952,1720855854250,-924.56,0.00026027,2]
[331926953,1720855854260,-444.00921194,0.00026027,2]
[331926954,1720855854269,-500.0,0.00026027,2]
[331926955,1720855854278,-678.01,0.00026027,2]
[331926956,1720855854288,-762.86,0.00026027,2]
[331926957,1720855854297,-498.67,0.00026027,2]
[331926958,1720855854307,-9300.48,0.00026027,2]
[331926959,1720855854316,-3136.93,0.00026027,2]
[331926960,1720855854325,-500.0,0.00026027,2]
[331926961,1720855854335,-500.0,0.00026027,2]
[331926962,1720855854345,-500.0,0.00026027,2]
[331926963,1720855854357,-500.0,0.00026027,2]
[331926964,1720855854366,-3189.57,0.00026027,2]
[331926965,1720855854375,-187.85,0.00026027,2]
[331926966,1720855854384,-501.09,0.00026027,2]
[331926967,1720855854393,-500.0,0.00026027,2]
[331926968,1720855854403,-500.0,0.00026027,2]
[331926969,1720855854411,-500.0,0.00026027,2]
[331926970,1720855854421,-500.0,0.00026027,2]
[331926971,1720855854430,-500.0,0.00026027,2]
[331926972,1720855854445,-500.0,0.00026027,2]
[331926973,1720855854454,-150.4447953,0.00026036,2]
[331926974,1720855854463,-151.87154201,0.00026072,2]
[331926975,1720855854473,-152.94115716,0.00026105,2]
[331926976,1720855854483,-155.38803879,0.00026121,2]
[331926977,1720855854493,-330.53736892,0.0002613,2]
[331926978,1720855854502,-452.15940518,0.0002619,2]
[331926979,1720855854512,-330.53736892,0.00026192,2]
[331926980,1720855854523,-152.94115716,0.00026194,2]
[331926981,1720855854533,-150.8442482,0.00026198,2]
[331926982,1720855854542,-150.4447953,0.00026212,2]
[331926983,1720855854551,-151.87154201,0.00026249,2]
[331926984,1720855854561,-167.25207352,0.00026278,2]
[331926985,1720855854570,-150.8442482,0.00026289,2]
[331926986,1720855854579,-1469.61,0.0002629,2]
[331926987,1720855854589,-509.13,0.000263,2]
[331926988,1720855854598,-500.0,0.000263,2]
[331926989,1720855854608,-1545.54,0.000263,2]
[331926990,1720855854618,-1545.54,0.000263,2]
[331926991,1720855854627,-1545.54,0.000263,2]
[331926992,1720855854637,-1545.54,0.000263,2]